Workbook

Sheet 2015 2016
A1: CLASSEMENT DES TOURNOIS DEPARTEMENTAUX JEUNES Saison 2015/2016
A4: Classement | B4: Joueurs | C4: Club | D4: Classement Général | F4: Bourg Ceyzériat | H4: Ambérieu | J4: Chatillon | L4: Ambérieu | N4: Belley | P4: ASPTT Bourg | R4: Miribel | T4: Trévoux | V4: Oyonnax | X4: Montmerle | Z4: Tournoi N°11 | AB4: Tournoi N°12
D5: Point tournoi | E5: Nbr de tournois joués | F5: Niveau tournoi | G5: Points tournoi | H5: Niveau tournoi | I5: Points tournoi | J5: Niveau tournoi | K5: Points tournoi | L5: Niveau tournoi | M5: Points tournoi | N5: Niveau tournoi | O5: Points tournoi | P5: Niveau tournoi | Q5: Points tournoi | R5: Niveau tournoi | S5: Points tournoi | T5: Niveau tournoi | U5: Points tournoi | V5: Niveau tournoi | W5: Points tournoi | X5: Niveau tournoi | Y5: Points tournoi | Z5: Niveau tournoi | AA5: Points tournoi | AB5: Niveau tournoi | AC5: Points tournoi
A6: CADETTES | F6: X | H6: X | J6: X | L6: X | N6: X | P6: X | R6: X | T6: X
A7: 1 | B7: BASQUE Océane | C7: Ambérieu | D7: =G7+K7+I7+M7+O7+Q7+S7+U7+W7+Y7 -> 134 | N7: F Top A | O7: 30 | P7: V TopA | Q7: 40 | R7: 1ère TOP A | S7: 40 | T7: 3ème Top A | U7: 24
A8: 2 | B8: POULET GEORGES Annaelle | C8: Ambérieu | D8: =G8+K8+I8+M8+O8+Q8+S8+U8+W8+Y8 -> 110 | H8: F Top A | I8: 30 | R8: 1ère TOP A | S8: 40 | T8: 1ère Top A | U8: 40
A9: 3 | B9: FEYDIT Julie | C9: Trévoux | D9: 28 | H9: 1/2 Top A | I9: 24 | N9: P Top A | O9: 2 | T9: 4ème Top A | U9: 2
A10: 4 | B10: DERABLI Juliana | C10: Ambérieu | D10: 26 | H10: 1/2 Top A | I10: 24 | R10: 4ème Top A | S10: 2
A11: 5 | B11: CHAMBARD Fanny | C11: Ambérieu | D11: 4 | H11: P Top A | I11: 2 | R11: 4ème Top A | S11: 2
A12: 6 | B12: CAILLON Lucie | C12: Oyonnax | D12: 4 | H12: P Top A | I12: 2 | P12: P Top A | Q12: 2
A13: 7 | B13: MAURIN Lucie | C13: Belley | D13: 1 | N13: P Top B | O13: 1
A15: MINIMES FILLES | F15: X | H15: X | J15: X | L15: X | N15: X | P15: X | R15: X | T15: X
A16: 1 | B16: PUISSANT Loane | C16: Chatillon | D16: =G16+K16+I16+M16+O16+Q16+S16+U16+W16+Y16 -> 344 | F16: F TopA | G16: 30 | H16: F Top A | I16: 30 | J16: V Top A | K16: 40 | N16: 1/2 Top A Surc | O16: 48 | P16: F Top A Surc | Q16: 60 | R16: 3ème Top A Sur | S16: 48 | T16: 1/2 Top A | U16: 24 | V16: 1/2 Top A | W16: 24 | X16: 1ère | Y16: 40
A17: 2 | B17: ROUAULT Linoa | C17: Trévoux | D17: 264 | F17: V TopA | G17: 30 | J17: 1/2 TopA | K17: 24 | N17: V Top A Surc | O17: 80 | R17: 2ème Top A Sur | S17: 60 | T17: V Top A | U17: 40 | X17: 2ème | Y17: 30
A18: 3 | B18: LE Léane | C18: Ambérieu | D18: 140 | H18: V Top A Surc | I18: 80 | T18: 2ème Top A Surc | U18: 60
A19: 4 | B19: SANCHEZ Coralie | C19: Trévoux | D19: 136 | F19: P TopA | G19: 2 | J19: 1/2 TopA | K19: 24 | N19: P Top A | O19: 2 | R19: 3ème Top A Sur | S19: 60 | T19: 1/4 Top A | U19: 18 | X19: 2ème | Y19: 30
A20: 5 | B20: GIROUD Louise | C20: Centre Domes | D20: 136 | P20: 1/2 Top A Surc | Q20: 48 | R20: 3ème Top A Sur | S20: 48 | X20: 1ère | Y20: 40
A21: 6 | B21: MARRON Amélie | C21: St Genis | D21: 118 | F21: 1/2 TopA | G21: 24 | H21: P Top A | I21: 2 | N21: 1/2 Top A Surc | O21: 24 | P21: 1/2 Top A Surc | Q21: 48 | T21: 1/4 Top A | U21: 18 | V21: P Top A | W21: 2
A22: 7 | B22: BOUILLARD Alicia | C22: 3 Rivières | D22: 96 | F22: P TopA | G22: 2 | H22: 1/2 Top A | I22: 24 | J22: P Top A | K22: 2 | N22: P Top A Surc | O22: 4 | P22: 1/4 Top A Surc | Q22: 36 | T22: P Top A | U22: 2 | V22: P Top A | W22: 2 | X22: 3ème | Y22: 24
A23: 8 | B23: LEGROS Fanny | C23: Belley | D23: 92 | H23: 1/2 Top A | I23: 24 | J23: F Top A | K23: 30 | N23: P Top A | O23: 2 | P23: 1/4 Top A Surc | Q23: 36
A24: 9 | B24: CHOSSAT Julie | C24: Oyonnax | D24: 68 | F24: P TopA | G24: 2 | H24: P Top A | I24: 2 | N24: V Top B Surc | O24: 40 | P24: P Top A Surc | Q24: 4 | V24: V Top B | W24: 20
A25: 10 | B25: CANONNE Aléna | C25: Ambérieu | D25: 60 | N25: 1/2 Top A Surc | O25: 48 | V25: 1/2 Top B | W25: 12
A26: 11 | B26: DEVILLARD Pauline | C26: Bourg Ceyzériat | D26: 48 | F26: 1/2 TopA | G26: 24 | J26: 1/2 TopA | K26: 24
A27: 12 | B27: FLECHET Camille | C27: Ambérieu | D27: 31 | N27: F Top B Surc | O27: 30 | V27: P Top B | W27: 1
A28: 13 | B28: TORRES Gwendoline | C28: Oyonnax | D28: 31 | H28: P Top A | I28: 2 | J28: P TopA | K28: 2 | N28: P Top B Surc | O28: 2 | P28: P Top A Surc | Q28: 4 | R28: 5ème Top A | S28: 2 | T28: P Top A | U28: 2 | V28: F Top B | W28: 15 | X28: 5ème | Y28: 2
A29: 14 | B29: LOUREAUX Maéva | C29: Oyonnax | D29: 30 | H29: P Top A | I29: 2 | J29: P TopA | K29: 2 | N29: 1/2 Top B Surc | O29: 24 | R29: 5ème Top A | S29: 2
A30: 15 | B30: BRUNE Gaelle | C30: Oyonnax | D30: 14 | V30: 1/2 Top B | W30: 12 | X30: 5ème | Y30: 2
A31: 16 | B31: ROUSSET Manon | C31: Oyonnax | D31: 5 | P31: P Top A Surc | Q31: 4 | V31: P Top B | W31: 1
A32: 17 | B32: THOMAS Solène | C32: Belley | D32: 2 | N32: P Top B Surc | O32: 2
A33: 18 | B33: CURNILLON Jade | C33: Chatillon | D33: 2 | J33: P TopA | K33: 2
A34: 19 | B34: CAILLON Lucie | C34: Oyonnax | D34: 1 | V34: P Top B | W34: 1
A36: BENJAMINES | F36: X | H36: X | J36: X | L36: X | N36: X | P36: X | R36: X | T36: X
A37: 1 | B37: PELERIN Sarah | C37: Chatillon | D37: =G37+K37+M37+O37+Q37+I37+S37+U37+W37+Y37 -> 300 | H37: V Top A Surc | I37: 80 | J37: V Top A Surc | K37: 80 | T37: F Top A Surc | U37: 60 | V37: V Top A Surc | W37: 80
A38: 2 | B38: SIMONET Alice | C38: Bourg Ceyzériat | D38: 240 | F38: 1ère TopA | G38: 40 | H38: V Top A | I38: 40 | J38: 1/2 TopA Surc | K38: 24 | P38: V Top A | Q38: 40 | V38: 1/2 Top A Surc | W38: 48 | X38: 3ème Surc | Y38: 48
A39: 3 | B39: LEBEAULT Sasha | C39: 3 Rivières | D39: 210 | F39: 3ème TopA | G39: 24 | H39: 1/2 Top A | I39: 24 | J39: 1ere TopA | K39: 40 | P39: F Top A | Q39: 30 | T39: 1/2 Top A Surc | U39: 48 | V39: V Top A | W39: 40 | X39: 4ème Surc | Y39: 4
A40: 4 | B40: BOULITEAU Manon | C40: 3 Rivières | D40: 202 | F40: 2ème TopA | G40: 30 | H40: F Top A | I40: 30 | J40: 1ere TopA | K40: 40 | P40: 1/2 Top A | Q40: 24 | R40: 1ère Top A | S40: 40 | T40: P Top A Surc | U40: 4 | V40: F Top A | W40: 30 | X40: 4ème Surc | Y40: 4
A41: 5 | B41: CORDIER Louise | C41: Trévoux | D41: 200 | F41: 4ème TopA | G41: 2 | N41: V Top A | O41: 40 | P41: 1/2 Top A | Q41: 24 | R41: 2ème Top A | S41: 30 | T41: 1ère Top A | U41: 40 | V41: 1/2 Top A | W41: 24 | X41: V | Y41: 40
A42: 6 | B42: GUILBERT LY Aï Linh | C42: Chatillon | D42: 120 | J42: F Top A Surc | K42: 60 | V42: F Top A Surc | W42: 60
A43: 7 | B43: CLAUDET Clara | C43: St Genis | D43: 54 | H43: 1/2 Top A | I43: 24 | J43: 2ème Top A | K43: 30
A44: 8 | B44: CLAUDET Romane | C44: St Genis | D44: 54 | J44: 2ème Top A | K44: 30 | V44: 1/2 Top A | W44: 24
A45: 9 | B45: LEUK Julie | C45: 3 Rivières | D45: 48 | V45: 1/4 Top A | W45: 18 | X45: 2ème | Y45: 30
A46: 10 | B46: VASTEL Marion | C46: Trévoux | D46: 46 | H46: P Top A | I46: 2 | P46: P Top A | Q46: 2 | T46: 3ème Top A | U46: 18 | X46: 3ème | Y46: 24
A47: 11 | B47: BARLET Léa | C47: Belley | D47: 30 | N47: F Top A | O47: 30
A48: 12 | B48: PLANTIER Elsa | C48: Miribel | D48: 28 | R48: 3ème Top A | S48: 24 | T48: 5ème Top A | U48: 2 | V48: P Top A | W48: 2
A49: 13 | B49: PIERRE Eva | C49: Belley | D49: 26 | N49: 1/2 Top A | O49: 24 | P49: P Top A | Q49: 2
A50: 14 | B50: AGUETTANT Alix | C50: Belley | D50: 24 | N50: 1/2 Top A | O50: 24
A51: 15 | B51: DE DURAT Lorna | C51: Chatillon | D51: 24 | J51: 3ème Top A | K51: 24
A52: 16 | B52: RIGOLLET Lucie | C52: Chatillon | D52: 24 | J52: 3ème Top A | K52: 24
A53: 17 | B53: GAULTIER Manon | C53: St Genis | D53: 4 | F53: 5ème TopA | G53: 2 | H53: P Top A | I53: 2
A54: 18 | B54: DE ALMEIDA Mélina | C54: 3 Rivières | D54: 4 | V54: P Top A | W54: 2 | X54: 4ème | Y54: 2
A55: 19 | B55: CORRUE MEISENER Emma | C55: Belley | D55: 2 | N55: P Top A | O55: 2
A57: POUSSINES | F57: X | H57: X | J57: X | L57: X | N57: X | P57: X | R57: X | T57: X
A58: 1 | B58: TATOT Tatiana | C58: Belley | D58: =G58+K58+M58+O58+Q58+I58+S58+U58+W58+Y58 -> 94 | P58: F Top A | Q58: 30 | T58: 2ème Top A Surc | U58: 60 | V58: P Top A Surc | W58: 4
A59: 2 | B59: GOEPPNER CHAU Marie | C59: St Genis | D59: 49 | P59: V Top A | Q59: 40 | V59: 1/4 Top A | W59: 9
A60: 3 | B60: MARRON Gabriel | C60: St Genis | D60: 30 | P60: 1/2 Top A | Q60: 24 | T60: 4ème Top A Surc | U60: 4 | V60: P Top A | W60: 2
A61: 4 | B61: BELLEC Ambre | C61: Belley | D61: 24 | P61: 1/2 Top A | Q61: 24
A62: 5 | B62: GAILLARD Ninon | C62: Chatillon | D62: 2 | P62: P Top A | Q62: 2
A63: 6 | B63: MAITRE Anae | C63: Chatillon | D63: 2 | P63: P Top A | Q63: 2
A65: CADETS | F65: X | H65: X | J65: X | L65: X | N65: X | P65: X | R65: X | T65: X
A66: 1 | B66: BEAURENAULT Axel | C66: Trévoux | D66: =G66+K66+M66+O66+Q66+I66+S66+U66+W66+Y66 -> 180 | H66: F Top A | I66: 30 | N66: V Top A | O66: 40 | T66: F Top A | U66: 30 | V66: V Top A | W66: 40 | X66: V | Y66: 40
A67: 2 | B67: FOREST Lucas | C67: Belley | D67: 179 | F67: 1/4 TopA | G67: 18 | H67: V Top A | I67: 40 | J67: F Top A | K67: 30 | N67: 1/4 Top A | O67: 18 | P67: P Top A | Q67: 2 | R67: F Top A | S67: 30 | T67: P Top A | U67: 2 | V67: F Top B | W67: 15 | X67: 1/2 | Y67: 24
A68: 3 | B68: STENARD Jérémy | C68: 3 Rivières | D68: 172 | F68: V TopA | G68: 40 | J68: 1/2 Top A | K68: 24 | N68: 1/2 Top A | O68: 24 | R68: 1/2 Top A | S68: 24 | T68: V Top A | U68: 40 | V68: P Top A | W68: 2 | X68: 1/4 | Y68: 18
A69: 4 | B69: GERBIER Loan | C69: Trévoux | D69: 148 | H69: 1/2 Top A | I69: 24 | J69: V Top A | K69: 40 | P69: F Top A | Q69: 30 | T69: 1/2 Top A | U69: 24 | V69: F Top A | W69: 30
A70: 5 | B70: LEGARDEUR Mattéo | C70: St Genis | D70: 138 | F70: 1/2 TopA | G70: 24 | J70: V Top B | K70: 20 | N70: F Top A | O70: 30 | V70: 1/2 Top A | W70: 24 | X70: V | Y70: 40
A71: 6 | B71: PROST Justin | C71: St Genis | D71: 130 | F71: F TopA | G71: 30 | H71: P Top A | I71: 2 | J71: 1/2 Top A | K71: 24 | N71: 1/4 Top A | O71: 18 | P71: 1/2 Top A | Q71: 24 | V71: P Top A | W71: 2 | X71: F | Y71: 30
A72: 7 | B72: HILD Jean Baptiste | C72: Belley | D72: 126 | F72: 1/2 TopA | G72: 24 | J72: F Top A | K72: 30 | N72: 1/2 Top A | O72: 24 | R72: F Top A | S72: 30 | T72: 1/4 Top A | U72: 18
A73: 8 | B73: WANTZ Léo | C73: Montmerle | D73: 108 | H73: P Top A | I73: 2 | J73: 1/2 Top A | K73: 24 | N73: 1/4 Top A | O73: 18 | P73: 1/4 Top A | Q73: 18 | R73: 1/2 Top A | S73: 24 | T73: P Top A | U73: 2 | V73: P Top A | W73: 2 | X73: 1/4 | Y73: 18
A74: 9 | B74: VANDAMME Clément | C74: 3 Rivières | D74: 105 | F74: 1/4 TopA | G74: 18 | H74: 1/8 Top B | I74: 7 | J74: F Top B | K74: 15 | N74: 1/4 Top B | O74: 9 | P74: F Top B | Q74: 15 | R74: P Top A | S74: 2 | T74: 1/2 Top B | U74: 12 | V74: 1/4 Top B | W74: 9 | X74: 1/4 | Y74: 18
A75: 10 | B75: BESSET Florent | C75: Miribel | D75: 88 | N75: V Top B | O75: 20 | P75: 1/2 Top B | Q75: 12 | R75: 1/2 Top A | S75: 24 | T75: V Top B | U75: 20 | V75: 1/2 Top B | W75: 12
A76: 11 | B76: MARRON Clément | C76: St Genis | D76: 85 | F76: P TopA | G76: 2 | J76: V Top B | K76: 20 | N76: 1/4 Top A | O76: 18 | P76: 1/4 Top A | Q76: 18 | T76: 1/4 Top A | U76: 18 | V76: 1/4 Top B | W76: 9
A77: 12 | B77: PERRIN Joris | C77: Bourg Ceyzériat | D77: 82 | H77: 1/2 Top A | I77: 24 | J77: V Top A | K77: 40 | P77: 1/4 Top A | Q77: 18
A78: 13 | B78: DELUCINGE Théo | C78: St Genis | D78: 78 | F78: V TopB | G78: 20 | N78: F Top B | O78: 15 | P78: 1/4 Top A | Q78: 18 | T78: 1/4 Top A | U78: 18 | V78: 1/8 Top B | W78: 7
A79: 14 | B79: BOEHLER Julien | C79: Belley | D79: 78 | F79: 1/4 TopA | G79: 18 | H79: 1/2 Top B | I79: 12 | J79: 1/2 top B | K79: 12 | N79: P Top A | O79: 2 | P79: P Top A | Q79: 2 | R79: 1/4 Top A | S79: 18 | V79: 1/2 Top B | W79: 12 | X79: P | Y79: 2
A80: 15 | B80: PARMENTIER Guillaume | C80: Bourg Ceyzériat | D80: 69 | F80: 1/2 TopB | G80: 12 | H80: 1/4 Top B | I80: 9 | J80: 1/2 TopB | K80: 12 | P80: 1/8 Top B | Q80: 7 | R80: 1/4 Top A | S80: 18 | T80: 1/4 Top B | U80: 9 | X80: P | Y80: 2
A81: 16 | B81: ACOSTA Axel | C81: Ambérieu | D81: 68 | F81: 1/4 TopA | G81: 18 | H81: P Top A | I81: 2 | J81: P Top A | K81: 2 | N81: P Top A | O81: 2 | R81: 1/2 Top A | S81: 24 | T81: P Top A | U81: 2 | X81: 1/4 | Y81: 18
A82: 17 | B82: CAUCAL Bastien | C82: Trévoux | D82: 67 | F82: 1/4 TopB | G82: 9 | H82: F Top B | I82: 15 | N82: 1/2 Top B | O82: 12 | P82: V Top B | Q82: 20 | T82: 1/4 Top B | U82: 9 | X82: P | Y82: 2
A83: 18 | B83: THIERRY Cédric | C83: Ambérieu | D83: 67 | F83: P TopB | G83: 1 | H83: 1/2 Top B | I83: 12 | N83: 1/8 Top B | O83: 7 | P83: 1/4 Top B | Q83: 9 | R83: P Top A | S83: 2 | T83: 1/2 Top B | U83: 12 | X83: 1/2 | Y83: 24
A84: 19 | B84: LEGROS Rémi | C84: Belley | D84: 64 | P84: V Top A | Q84: 40 | X84: 1/2 | Y84: 24
A85: 20 | B85: RUER Léo | C85: Ambérieu | D85: 54 | F85: P TopA | G85: 2 | H85: P Top A | I85: 2 | J85: F Top B | K85: 15 | N85: P TopA | O85: 2 | P85: P Top A | Q85: 2 | R85: P Top A | S85: 2 | T85: P Top A | U85: 2 | V85: 1/4 Top B | W85: 9 | X85: 1/4 | Y85: 18
A86: 21 | B86: VINCENT Gaël | C86: Belley | D86: 45 | F86: P TopA | G86: 2 | J86: 1/2 top B | K86: 12 | N86: P Top B | O86: 1 | P86: P Top B | Q86: 1 | R86: 1/4 Top A | S86: 18 | T86: 1/4 Top B | U86: 9 | X86: P | Y86: 2
A87: 22 | B87: BARTHES Mathieu | C87: Trévoux | D87: 43 | F87: P TopA | G87: 2 | H87: V Top B | I87: 20 | N87: 1/4 Top B | O87: 9 | P87: 1/4 Top B | Q87: 9 | T87: P Top B | U87: 1 | X87: P | Y87: 2
A88: 23 | B88: LESCHI Lucas | C88: Trévoux | D88: 35 | J88: P Top A | K88: 2 | N88: 1/4 Top B | O88: 9 | P88: 1/4 Top B | Q88: 9 | T88: F Top B | U88: 15
A89: 24 | B89: FONTAINE Jonathan | C89: Chatillon | D89: 31 | H89: 1/4 Top B | I89: 9 | J89: P Top B | K89: 2 | N89: 1/4 Top B | O89: 9 | P89: 1/4 Top A | Q89: 9 | T89: P Top B | U89: 1 | V89: P Top B | W89: 1
A90: 25 | B90: DUNY Corentin | C90: 3 Rivières | D90: 27 | F90: P TopB | G90: 1 | H90: 1/4 Top B | I90: 9 | J90: P Top B | K90: 1 | N90: 1/4 Top B | O90: 9 | P90: P Top B | Q90: 1 | R90: P Top A | S90: 2 | T90: P Top B | U90: 1 | V90: P Top B | W90: 1 | X90: P | Y90: 2
A91: 26 | B91: PANEK Maxime | C91: Bourg Ceyzériat | D91: 22 | F91: 1/4 TopB | G91: 9 | H91: P Top B | I91: 1 | J91: P Top B | K91: 1 | N91: P Top B | O91: 1 | P91: P Top B | Q91: 1 | V91: 1/4 Top B | W91: 9
A92: 27 | B92: CARDON Nicolas | C92: Montmerle | D92: 22 | H92: 1/8 Top B | I92: 7 | J92: P Top B | K92: 1 | N92: P Top B | O92: 1 | P92: 1/8 Top B | Q92: 7 | R92: P top A | S92: 2 | T92: P Top B | U92: 1 | V92: P Top B | W92: 1 | X92: P | Y92: 2
A93: 28 | B93: REVEILLARD Jules | C93: Belley | D93: 21 | H93: P Top B | I93: 1 | J93: P Top B | K93: 1 | N93: P Top B | O93: 1 | P93: P Top A | Q93: 2 | T93: 1/4 Top B | U93: 9 | V93: 1/8 Top B | W93: 7
A94: 29 | B94: BAREL Pierre | C94: Ambérieu | D94: 19 | H94: 1/4 Top B | I94: 9 | N94: P Top B | O94: 1 | R94: P Top A | S94: 2 | T94: 1/8 Top B | U94: 7
A95: 30 | B95: BERTHET Nathan | C95: Bourg Ceyzériat | D95: 18 | R95: 1/4 Top A | S95: 18
A96: 31 | B96: PAUTET Bertrand | C96: Bourg ASPTT | D96: 18 | F96: F TopB | G96: 15 | J96: P Top B | K96: 1 | X96: P | Y96: 2
A97: 32 | B97: PIRAD Gabriel | C97: Bourg Ceyzériat | D97: 17 | F97: P TopB | G97: 2 | J97: 1/2 TopB | K97: 12 | P97: P Top B | Q97: 1 | X97: P | Y97: 2
A98: 33 | B98: MAITRE Lucas | C98: Bourg ASPTT | D98: 12 | F98: 1/2 TopB | G98: 12
A99: 34 | B99: GROLLEAN William | C99: Miribel | D99: 12 | N99: 1/2 Top B | O99: 12
A100: 35 | B100: JEANGEORGES Mathis | C100: Belley | D100: 11 | J100: P Top B | K100: 1 | N100: 1/8 Top B | O100: 7 | P100: P Top B | Q100: 1 | T100: P Top B | U100: 1 | V100: P Top B | W100: 1
A101: 36 | B101: GRIMMER Martin | C101: Ambérieu | D101: 10 | N101: P Top B | O101: 1 | P101: 1/4 Top B | Q101: 9
A102: 37 | B102: FRUTTO Louis | C102: St Genis | D102: 7 | N102: 1/8 Top B | O102: 7
A103: 38 | B103: FOURNIER Louis | C103: Bourg ASPTT | D103: 4 | F103: P TopB | G103: 1 | J103: P Top B | K103: 1 | X103: P | Y103: 2
A104: 39 | B104: ROY Bastien | C104: Oyonnax | D104: 3 | F104: P TopB | G104: 1 | H104: P Top B | I104: 1 | N104: P Top B | O104: 1
A105: 40 | B105: FUCILE Simone | C105: Miribel | D105: 2 | R105: P Top A | S105: 2
A106: 41 | B106: PLANTIER Yann | C106: Miribel | D106: 2 | R106: P Top A | S106: 2
A107: 42 | B107: GRIVET Floarian | C107: Ambérieu | D107: 2 | R107: P Top A | S107: 2
A108: 43 | B108: MONNE Etienne | C108: Ambérieu | D108: 2 | R108: P Top A | S108: 2
A109: 44 | B109: PICCOLI Antoine | C109: Oyonnax | D109: 2 | H109: P Top B | I109: 1 | V109: P Top B | W109: 1
A110: 45 | B110: SANJINES Vicente | C110: Bourg ASPTT | D110: 1 | P110: P Top B | Q110: 1
A111: 46 | B111: PASCAL Simon | C111: Ambérieu | D111: 1 | H111: P Top B | I111: 1
A113: MINIMES GARCONS | F113: X | H113: X | J113: X | L113: X | N113: X | P113: X | R113: X | T113: X
A114: 1 | B114: HENCKENDORN Mathis | C114: St Genis | D114: =G114+K114+M114+O114+I114+Q114+S114+U114+W114+Y114 -> 302 | F114: V TopA | G114: 40 | J114: 1/2 TopA Surc | K114: 48 | N114: V Top A | O114: 40 | P114: F Top A | Q114: 30 | T114: 1/4 Top A Surc | U114: 36 | V114: 1/2 Top A Surc | W114: 48 | X114: F Surc | Y114: 60
A115: 2 | B115: JULIEN Elie | C115: Chatillon | D115: 262 | F115: 1/2 TopA | G115: 24 | H115: 1/2 Top A | I115: 24 | J115: F TopA | K115: 30 | N115: F Top A | O115: 30 | P115: V Top A | Q115: 40 | R115: V Top A | S115: 40 | T115: V Top A | U115: 40 | V115: P Top A Surc | W115: 4 | X115: 2ème | Y115: 30
A116: 3 | B116: BOULITEAU Mattéo | C116: 3 Rivières | D116: 176 | F116: P TopA | G116: 2 | H116: P Top A | I116: 2 | J116: F Top A | K116: 30 | P116: 1/2 Top A | Q116: 24 | R116: V Top A | S116: 40 | T116: 1/2 Top A | U116: 24 | V116: 1/2 Top A | W116: 24 | X116: 2ème | Y116: 30
A117: 4 | B117: GIORDANO Martin | C117: Bourg Ceyzériat | D117: 166 | F117: F TopA | G117: 30 | P117: 1/2 Top A Surc | Q117: 48 | T117: 1/2 Top A Surc | U117: 48 | V117: V Top B Surc | W117: 40
A118: 5 | B118: GALIGNE Robin | C118: Trévoux | D118: 154 | H118: F Top A | I118: 30 | P118: 1/2 Top A | Q118: 24 | R118: F top A | S118: 30 | T118: F Top A | U118: 30 | X118: V | Y118: 40
A119: 6 | B119: ACOSTA Cyril | C119: Ambérieu | D119: 128 | F119: 1/2 TopA | G119: 24 | H119: P Top A | I119: 2 | J119: P TopA Surc | K119: 4 | R119: V Top A Surc | S119: 80 | T119: 1/4 Top A | U119: 18
A120: 7 | B120: CHARREYRON Bruno | C120: Trévoux | D120: 127 | J120: 1/4 TopA | K120: 18 | P120: F Top B | Q120: 15 | R120: F top A | S120: 30 | T120: 1/2 Top B | U120: 12 | V120: 1/2 Top B | W120: 12 | X120: V | Y120: 40
A121: 8 | B121: CHABANNE Léo | C121: Ambérieu | D121: 124 | H121: V Top A | I121: 40 | J121: P TopA Surc | K121: 4 | R121: V Top A Surc | S121: 80
A122: 9 | B122: LUCIEN Killian | C122: Chatillon | D122: 97 | F122: 1/2 TopB | G122: 12 | H122: 1/4 Top B | I122: 9 | J122: 1/2 TopA | K122: 24 | N122: P Top A | O122: 2 | R122: 1/2 Top A | S122: 24 | T122: P Top A | U122: 2 | X122: 3ème | Y122: 24
A123: 10 | B123: ORIAL Alexandre | C123: St Genis | D123: 78 | H123: V Top B | I123: 20 | P123: V Top B | Q123: 20 | T123: 1/4 Top A | U123: 18 | V123: V Top B | W123: 20
A124: 11 | B124: POUGET Quentin | C124: Trévoux | D124: 60 | F124: V TopB | G124: 20 | H124: P Top B | I124: 1 | R124: 1/2 Top A | S124: 24 | T124: F Top B | U124: 15
A125: 12 | B125: BONOMO Paul | C125: Ambérieu | D125: 59 | H125: 1/2 Top B | I125: 12 | J125: 1/2 TopA | K125: 24 | N125: 1/4 Top B | O125: 9 | P125: 1/2 Top B | Q125: 12 | R125: P Top A | S125: 2
A126: 13 | B126: PLANTIER Yann | C126: Miribel | D126: 59 | N126: F Top B | O126: 15 | P126: P Top A | Q126: 2 | T126: 1/4 Top A | U126: 18 | V126: 1/2 Top A | W126: 24
A127: 14 | B127: PAYAN Igor | C127: Chatillon | D127: 57 | N127: 1/2 Top B | O127: 12 | P127: P Top A | Q127: 2 | R127: 1/2 Top A | S127: 24 | T127: P Top A | U127: 2 | V127: F Top B | W127: 15 | X127: 4ème | Y127: 2
A128: 15 | B128: GUELIL Charlie | C128: Ambérieu | D128: 56 | H128: 1/2 Top B | I128: 12 | J128: 1/2 TopA | K128: 24 | N128: 1/4 Top B | O128: 9 | P128: 1/4 Top B | Q128: 9 | R128: P Top A | S128: 2
A129: 16 | B129: CHIROL Maxence | C129: 3 Rivières | D129: 46 | F129: P TopB | G129: 1 | H129: P Top B | I129: 1 | J129: P TopA | K129: 2 | N129: 1/2 Top B | O129: 12 | P129: P Top A | Q129: 2 | R129: P Top A | S129: 2 | T129: 1/2 Top B | U129: 12 | V129: 1/2 Top B | W129: 12 | X129: 4ème | Y129: 2
A130: 17 | B130: GERVAIS Hugo | C130: Ambérieu | D130: 39 | H130: 1/2 Top B | I130: 12 | P130: 1/2 Top B | Q130: 12 | T130: F Top B | U130: 15
A131: 18 | B131: CHAMPOUILLON Nathan | C131: Miribel | D131: 33 | N131: V Top B | O131: 20 | R131: P Top A | S131: 2 | T131: 1/4 Top B | U131: 9 | V131: P Top A | W131: 2
A132: 19 | B132: LAMOURET Alexandre | C132: Oyonnax | D132: 33 | H132: P Top B | I132: 1 | J132: 1/4 Top A | K132: 18 | N132: P Top B | O132: 1 | P132: P Top B | Q132: 1 | T132: 1/4 Top B | U132: 9 | V132: P Top B | W132: 1 | X132: 5ème | Y132: 2
A133: 20 | B133: DURAND Maxime | C133: Montmerle | D133: 21 | J133: P TopA | K133: 2 | N133: P Top B | O133: 1 | P133: 1/4 Top B | Q133: 9 | T133: 1/4 Top B | U133: 9
A134: 21 | B134: DEBARRE Hugo | C134: Miribel | D134: 19 | R134: 1/4 Top A | S134: 18 | T134: P Top B | U134: 1
A135: 22 | B135: BIAJOUX Mathias | C135: Chatillon | D135: 18 | J135: 1/4 Top A | K135: 18
A136: 23 | B136: GHILARDI Mathieu | C136: Miribel | D136: 18 | R136: 1/4 Top A | S136: 18
A137: 24 | B137: LENGAGNE Rémi | C137: Miribel | D137: 18 | R137: 1/4 Top A | S137: 18
A138: 25 | B138: MONNOT Alexis | C138: Miribel | D138: 18 | R138: 1/4 Top A | S138: 18
A139: 26 | B139: FONTAINE Hugo | C139: Miribel | D139: 18 | N139: 1/4 Top B | O139: 9 | T139: 1/4 Top B | U139: 9
A140: 27 | B140: DUBREUIL Robinson | C140: Bourg Ceyzériat | D140: 16 | F140: F TopB | G140: 15 | P140: P Top B | Q140: 1
A141: 28 | B141: DURO Esteban | C141: Bourg Ceyzériat | D141: 14 | F141: 1/2 TopB | G141: 12 | P141: P Top A | Q141: 2
A142: 29 | B142: FERNANDEZ Hugo | C142: Villars | D142: 9 | N142: 1/4 Top B | O142: 9
A143: 30 | B143: TAVIAUX Charly | C143: Oyonnax | D143: 9 | V143: 1/4 Top B | W143: 9
A144: 31 | B144: ROUGEMOND Elie | C144: Oyonnax | D144: 4 | F144: P TopA | G144: 2 | N144: P Top A | O144: 2
A145: 32 | B145: CHANEL BURIGNATJordan | C145: Bourg Ceyzériat | D145: 4 | J145: P TopA | K145: 2 | P145: P Top B | Q145: 1 | T145: P Top B | U145: 1
A146: 33 | B146: GARIDDO Colas | C146: Oyonnax | D146: 4 | N146: P Top A | O146: 2 | X146: 5ème | Y146: 2
A147: 34 | B147: BOIZET Clément | C147: Bourg Ceyzériat | D147: 3 | J147: P TopA | K147: 2 | P147: P Top B | Q147: 1
A148: 35 | B148: POMPET Ianis | C148: Miribel | D148: 3 | N148: P Top B | O148: 1 | R148: P Top A | S148: 2
A149: 36 | B149: NOBLET Antoine | C149: Miribel | D149: 2 | R149: P Top A | S149: 2
A150: 37 | B150: CHAUNEY Axel | C150: Bourg Ceyzériat | D150: 2 | F150: P TopB | G150: 1 | P150: P Top B | Q150: 1
A151: 38 | B151: BOURCET Thomas | C151: Trévoux | D151: 2 | H151: P Top B | I151: 1 | T151: P Top B | U151: 1
A152: 39 | B152: CHAMPLIAU Romain | C152: Oyonnax | D152: 1 | V152: P Top B | W152: 1
A153: 40 | B153: BOURNIER Lucas | C153: Bourg Ceyzériat | D153: 1 | J153: P TopA | K153: 1
A154: 41 | B154: FRUTTO Thomas | C154: St Genis | D154: 1 | N154: P Top B | O154: 1
A155: 42 | B155: VASSE Killian | C155: Oyonnax | D155: 0
A156: 41
A158: BENJAMINS | F158: X | H158: X | J158: X | L158: X | N158: X | P158: X | R158: X | T158: X
A159: 1 | B159: LOUIS GAVET Rémi | C159: Chatillon | D159: =G159+K159+M159+O159+Q159+I159+S159+U159+W159+Y159 -> 260 | H159: 1/2 Top A Surc | I159: 48 | J159: V Top A Surc | K159: 80 | N159: P Top A Surc | O159: 4 | T159: 1/2 Top A Surc | U159: 48 | V159: V Top A Surc | W159: 80
A160: 2 | B160: MORIN Alois | C160: Chatillon | D160: 252 | H160: F Top B Surc | I160: 30 | J160: 1/2 TopA Surc | K160: 48 | N160: 1/2 Top A Surc | O160: 48 | P160: F Top A | Q160: 30 | R160: 1/2 Top A Surc | S160: 48 | X160: 3ème Surc | Y160: 48
A161: 3 | B161: DUPUPET Adrien | C161: Chatillon | D161: 230 | F161: 1/2 TopA | G161: 24 | J161: F Top A | K161: 30 | N161: V Top A | O161: 40 | P161: P Top A | Q161: 2 | R161: 1er Top A | S161: 40 | T161: F Top A | U161: 30 | V161: 1/2 Top A | W161: 24 | X161: V | Y161: 40
A162: 4 | B162: LAGER Ewen | C162: Bourg Ceyzériat | D162: 228 | H162: P Top A Surc | I162: 4 | J162: V Top A Surc | K162: 80 | N162: 1/2 Top A Surc | O162: 48 | T162: 1/4 Top A Surc | U162: 36 | V162: F Top A Surc | W162: 60
A163: 5 | B163: MARTINAND Cédric | C163: Chatillon | D163: 214 | F163: 1/2 TopA | G163: 24 | J163: F Top A | K163: 30 | N163: F Top A | O163: 30 | P163: P Top A | Q163: 2 | R163: 1er Top A | S163: 40 | T163: 1/2 Top A | U163: 24 | V163: 1/2 Top A | W163: 24 | X163: V | Y163: 40
A164: 6 | B164: NALET Martin | C164: Bourg Ceyzériat | D164: 192 | F164: F TopA | G164: 30 | J164: V TopA | K164: 40 | P164: 1/2 Top A | Q164: 24 | R164: 3ème Top A | S164: 24 | T164: P Top A Surc | U164: 4 | V164: V Top A | W164: 40 | X164: F | Y164: 30
A165: 7 | B165: MOREY Nicolas | C165: Bourg Ceyzériat | D165: 124 | F165: V TopA | G165: 40 | J165: V TopA | K165: 40 | P165: V Top A | Q165: 40 | T165: P Top A Surc | U165: 4
A166: 8 | B166: SANLIARD Yoann | C166: Oyonnax | D166: 108 | H166: 1/2 Top B | I166: 12 | J166: 1/4 TopA | K166: 18 | N166: 1/2 Top A | O166: 24 | P166: P Top A | Q166: 2 | R166: 2ème Top A | S166: 30 | V166: V Top B | W166: 20 | X166: P | Y166: 2
A167: 9 | B167: WALTHER Tom | C167: Montmerle | D167: 108 | H167: V Top B | I167: 20 | J167: 1/2 TopA | K167: 12 | N167: 1/2 Top A | O167: 24 | P167: 1/2 Top A | Q167: 24 | T167: P Top A | U167: 2 | V167: P Top A | W167: 2 | X167: 1/2 | Y167: 24
A168: 10 | B168: BORDET Vivien | C168: Oyonnax | D168: 76 | N168: P Top A | O168: 2 | P168: 1/2 Top B | Q168: 12 | R168: 2ème Top A | S168: 30 | T168: 1/4 Top A | U168: 18 | V168: 1/2 Top B | W168: 12 | X168: P | Y168: 2
A169: 11 | B169: NOGUES Raphael | C169: St Genis | D169: 59 | H169: F Top B | I169: 15 | J169: 1/2 TopA | K169: 24 | P169: V Top B | Q169: 20
A170: 12 | B170: VINCENT Dorian | C170: Belley | D170: 52 | N170: 1/4 Top A | O170: 18 | P170: 1/4 Top B | Q170: 9 | T170: P Top A | U170: 1 | X170: 1/2 | Y170: 24
A171: 13 | B171: TEMMERMAN Tom | C171: Chatillon | D171: 45 | J171: P Top A | K171: 2 | P171: 1/4 Top B | Q171: 9 | R171: 5ème Top A | S171: 2 | T171: 1/4 Top A | U171: 18 | V171: 1/2 Top B | W171: 12 | X171: P | Y171: 2
A172: 14 | B172: MARCONI Elio | C172: St Genis | D172: 42 | F172: P TopA | G172: 2 | H172: 1/2 Top B | I172: 12 | J172: 1/2 Top A | K172: 24 | P172: P Top A | Q172: 2 | V172: P Top A | W172: 2
A173: 15 | B173: PRINCIC-GONZE Paco | C173: Belley | D173: 42 | H173: P Top B | I173: 1 | N173: P Top A | O173: 2 | V173: F Top B | W173: 15 | X173: 1/2 | Y173: 24
A174: 16 | B174: LAVINA Louis | C174: Oyonnax | D174: 38 | J174: 1/4 TopA | K174: 18 | N174: 1/4 Top A | O174: 18 | T174: P Top A | U174: 2
A175: 17 | B175: VIALLON Adrien | C175: Chatillon | D175: 38 | J175: P Top A | K175: 2 | P175: 1/4 Top B | Q175: 10 | R175: 5ème Top A | S175: 2 | T175: 1/2 Top A | U175: 24
A176: 18 | B176: MAUGE Lino | C176: Chatillon | D176: 33 | J176: 1/4 TopA | K176: 18 | P176: 1/2 Top B | Q176: 12 | R176: 4ème Top A | S176: 2 | V176: P Top B | W176: 1
A177: 19 | B177: GENILLON Amir | C177: Bourg Ceyzériat | D177: 31 | J177: P TopA | K177: 2 | P177: P Top B | Q177: 1 | R177: 3ème Top A | S177: 24 | V177: P Top A | W177: 2 | X177: P | Y177: 2
A178: 20 | B178: BERTHILLIER Kostia | C178: Bourg Ceyzériat | D178: 19 | J178: P TopA Surc | K178: 4 | P178: F Top B | Q178: 15
A179: 21 | B179: PIERRE Enzo | C179: Bourg Ceyzériat | D179: 13 | J179: P TopA | K179: 2 | P179: 1/4 Top B | Q179: 9 | T179: P Top A | U179: 2
A180: 22 | B180: THIROUARD Thomas | C180: Ambérieu | D180: 5 | H180: P Top B | I180: 1 | T180: P Top A | U180: 2 | X180: P | Y180: 2
A181: 23 | B181: LECRIVAIN Raphael | C181: Chatillon | D181: 3 | P181: P Top B | Q181: 1 | R181: 4ème Top A | S181: 2
A182: 24 | B182: CAZALAS Grégoire | C182: Bourg Ceyzériat | D182: 2 | J182: P TopA | K182: 2
A183: 25 | B183: DORIAN Vincent | C183: Belley | D183: 2 | F183: P TopA | G183: 2
A184: 26 | B184: LAVINA Louis | C184: Oyonnax | D184: 2 | F184: P TopA | G184: 2
A185: 27 | B185: STRULLU Guillaume | C185: Belley | D185: 2 | N185: P Top A | O185: 2
A186: 28 | B186: DOS SANTOS Tiago | C186: Oyonnax | D186: 2 | P186: P Top B | Q186: 1 | V186: P Top B | W186: 1
A187: 29 | B187: DUFOURMONT Lilian | C187: Chatillon | D187: 1 | P187: P Top B | Q187: 1
A189: POUSSINS | F189: X | H189: X | J189: X | L189: X | N189: X | P189: X | R189: X | T189: X
A190: 1 | B190: LUCIEN Lucas | C190: Chatillon | D190: =G190+K190+M190+O190+Q190+I190+S190+U190+W190+Y190 -> 276 | F190: V TopA | G190: 40 | J190: 1/4 TopA Surc | K190: 36 | T190: V Top A Surc | U190: 80 | V190: F Top A Surc | W190: 60 | X190: F Surc | Y190: 60
A191: 2 | B191: CARPENTIER Erwan | C191: Oyonnax | D191: 202 | F191: 1/2 TopA | G191: 24 | H191: 2ème Top A | I191: 30 | J191: P TopA Surc | K191: 4 | N191: 1er Top A | O191: 40 | P191: 1/2 Top A | Q191: 24 | R191: V Top A | S191: 40 | V191: V Top A | W191: 40
A192: 3 | B192: DURAND Léo | C192: 3 Rivières | D192: 200 | F192: P TopA | G192: 2 | J192: 1/2 TopA Surc | K192: 48 | N192: 2ème Top A | O192: 30 | P192: 1/2 Top A | Q192: 24 | R192: 1/2 Top A | S192: 24 | T192: 1/2 Top A | U192: 24 | X192: 1/2 Surc | Y192: 48
A193: 4 | B193: MASSE Titouan | C193: Bourg Ceyzériat | D193: 156 | F193: 1/2 TopA | G193: 24 | J193: P TopA Surc | K193: 2 | N193: 4ème Top A | O193: 2 | P193: 1/4 Top A | Q193: 18 | T193: V Top A | U193: 40 | V193: F Top A | W193: 30 | X193: V | Y193: 40
A194: 5 | B194: ZARA MARMETH Nathan | C194: Oyonnax | D194: 144 | F194: F TopA | G194: 30 | H194: 1er Top A | I194: 40 | J194: P TopA Surc | K194: 4 | P194: V Top A | Q194: 40 | R194: F top A | S194: 30
A195: 6 | B195: MIQUEL Arthur | C195: Trévoux | D195: 80 | H195: 3ème Top A | I195: 24 | P195: P Top A | Q195: 2 | T195: 1/2 Top A | U195: 24 | X195: F | Y195: 30
A196: 7 | B196: MONARD Timothy | C196: Chatillon | D196: 62 | P196: 1/4 Top A | Q196: 18 | R196: 1/4 Top A | S196: 18 | T196: P Top A | U196: 2 | X196: 1/2 | Y196: 24
A197: 8 | B197: LAPOUGE Silas | C197: Miribel | D197: 54 | R197: 1/2 Top A | S197: 24 | T197: F Top A | U197: 30
A198: 9 | B198: FAUGERE Maxence | C198: Bourg Ceyzériat | D198: 50 | P198: P Top A | Q198: 2 | V198: 1/2 Top A | W198: 24 | X198: 1/2 | Y198: 24
A199: 10 | B199: GENILLON Chedid | C199: Bourg Ceyzériat | D199: 32 | P199: P Top A | Q199: 2 | R199: P Top A | S199: 2 | T199: P Top A | U199: 2 | V199: 1/2 Top A | W199: 24 | X199: P | Y199: 2
A200: 11 | B200: HAYETTE Anseis | C200: Chatillon | D200: 30 | P200: F Top A | Q200: 30
A201: 12 | B201: VIDAL Mathieu | C201: Ambérieu | D201: 24 | R201: 1/4 Top A | S201: 18 | T201: P Top A | U201: 2 | X201: P Surc | Y201: 4
A202: 13 | B202: CRETIN Clovis | C202: Ambérieu | D202: 4 | H202: 4ème Top A | I202: 2 | R202: P Top A | S202: 2
A203: 14 | B203: MONTCHAL Ruben | C203: Miribel | D203: 2 | R203: P Top A | S203: 2
A204: 15 | B204: POUILLART Pierre | C204: Ambérieu | D204: 2 | R204: P Top A | S204: 2
A205: 16 | B205: ARDUIN Théotime | C205: Belley | D205: 2 | N205: 5ème Top A | O205: 2
A206: 17 | B206: HAMDAOUI Massyn | C206: St Genis | D206: 2 | V206: P Top A | W206: 2
A207: 18 | B207: CAREME Axel | C207: 3 Rivières | D207: 2 | V207: P Top A | W207: 2
A208: 19 | B208: BORGE Joris | C208: Chatillon | D208: 2 | X208: P | Y208: 2
A209: 20 | B209: FLECHET Louis | C209: Chatillon | D209: 2 | X209: P | Y209: 2
... 1 more rows

Sheet 2016 2017
A1: CLASSEMENT DES TOURNOIS DEPARTEMENTAUX JEUNES Saison 2016/2017
A4: Classement | B4: Joueurs | C4: Club | D4: Classement Général | F4: Bourg Ceyzériat | H4: Ambérieu | J4: Chatillon | N4: Belley | P4: ASPTT Bourg | R4: Beynost | T4: Trévoux | V4: Oyonnax | X4: Montmerle | Z4: Tournoi N°11 | AB4: Tournoi N°12
D5: Points tournois | E5: Nbr de tournois joués | F5: Niveau tournoi | G5: Points tournoi | H5: Niveau tournoi | I5: Points tournoi | J5: Niveau tournoi | K5: Points tournoi | L5: Niveau tournoi | M5: Points tournoi | N5: Niveau tournoi | O5: Points tournoi | P5: Niveau tournoi | Q5: Points tournoi | R5: Niveau tournoi | S5: Points tournoi | T5: Niveau tournoi | U5: Points tournoi | V5: Niveau tournoi | W5: Points tournoi | X5: Niveau tournoi | Y5: Points tournoi | Z5: Niveau tournoi | AA5: Points tournoi | AB5: Niveau tournoi | AC5: Points tournoi
A6: CADETTES | F6: X | H6: X | J6: X | L6: X | N6: X | P6: X | R6: X | T6: X
A7: 1 | B7: CHOSSAT Julie | C7: Oyonnax | D7: =G7+I7+K7+M7+O7+Q7+S7+U7+W7+Y7+AA7+AC7 -> 88 | E7: =COUNTA(G7,I7,K7,O7,S7,U7,W7,Y7) -> 5 | F7: 2ème Top A | G7: 30 | H7: 1/2 Top A | I7: 24 | J7: 4ème Top A | K7: 2 | N7: F Top A | O7: 30 | R7: 4ème Top A | S7: 2
A8: 2 | B8: CORVI Hortense | C8: Trévoux | D8: 80 | E8: 2 | F8: 1ère Top A | G8: 40 | H8: V Top A | I8: 40
A9: 3 | B9: FEYDIT Julie | C9: Trévoux | D9: 78 | E9: 3 | H9: F Top A | I9: 30 | J9: 3ème Top A | K9: 24 | R9: 3ème Top A | S9: 24
A10: 4 | B10: GIROUD Louise | C10: Villars | D10: 70 | E10: 2 | N10: V Top A | O10: 40 | R10: 2ème Top A | S10: 30
A11: 5 | B11: SANCHEZ Coralie | C11: Trévoux | D11: 50 | E11: 3 | H11: 1/2 Top A | I11: 24 | J11: 3ème Top A | K11: 24 | R11: 5ème Top A | S11: 2
A12: 6 | B12: BASQUE Océane | C12: Ambérieu | D12: 40 | E12: 1 | R12: 1ère Top A | S12: 40
A13: 7 | B13: TORRES Gwendoline | C13: Oyonnax | D13: 28 | E13: 3 | H13: P Top A | I13: 2 | J13: 5ème Top A | K13: 2 | N13: 1/2 Top A | O13: 24
A14: 8 | B14: CANONNE Aléna | C14: Ambérieu | D14: 26 | E14: 2 | F14: 3ème Top A | G14: 24 | H14: P Top A | I14: 2
A15: 9 | B15: BERTHOLET Calypso | C15: Belley | D15: 24 | E15: 1 | N15: 1/2 Top A | O15: 24
A16: 10 | B16: FORTIS Lou | C16: Oyonnax | D16: 4 | E16: 2 | H16: P Top A | I16: 2 | J16: 4ème Top A | K16: 2
A17: 11 | B17: HYVERNAT Mallory | C17: Châtillon | D17: 2 | E17: 1 | F17: 4ème Top A | G17: 2
A18: 12 | B18: BRUNE Gaëlle | C18: Oyonnax | D18: 2 | E18: 1 | J18: 5ème Top A | K18: 2
A19: 13 | B19: PIERRE Lou-Anne | C19: Belley | D19: 2 | E19: 1 | N19: P Top A | O19: 2
A21: MINIMES FILLES | F21: X | H21: X | J21: X | L21: X | N21: X | P21: X | R21: X | T21: X
A22: 1 | B22: GUILBERT-LY Ai-linh | C22: Châtillon | D22: =G22+I22+K22+M22+O22+Q22+S22+U22+W22+Y22+AA22+AC22 -> 160 | E22: =COUNTA(G22,I22,K22,O22,S22,U22,W22,Y22) -> 3 | F22: V Top A | G22: 40 | H22: V Top A | I22: 40 | J22: V Top A Surc | K22: 80
A23: 2 | B23: PUISSANT Loane | C23: Châtillon | D23: 110 | E23: 2 | F23: F Top A | G23: 30 | J23: V Top A Surc | K23: 80
A24: 3 | B24: BOUILLARD Alicia | C24: Montmerle | D24: 104 | E24: 5 | F24: P Top A | G24: 2 | H24: 1/2 Top A | I24: 24 | J24: F Top A | K24: 30 | N24: 1/2 Top A | O24: 24 | R24: 1/2 Top A | S24: 24
A25: 4 | B25: SIMONET Alice | C25: Bourg Ceyzériat | D25: 102 | E25: 3 | F25: 1/4 Top A | G25: 18 | H25: 1/2 Top A | I25: 24 | J25: F Top A Surc | K25: 60
A26: 5 | B26: BOULITEAU Manon | C26: Montmerle | D26: 102 | E26: 5 | F26: 1/4 Top A | G26: 18 | H26: 1/4 Top A | I26: 18 | J26: V Top A | K26: 40 | N26: 1/2 Top A | O26: 24 | R26: P Top A | S26: 2
A27: 6 | B27: MARRON Amélie | C27: Saint Genis | D27: 94 | E27: 3 | F27: 1/2 Top A | G27: 24 | N27: F Top A | O27: 30 | R27: V Top A | S27: 40
A28: 7 | B28: PELERIN Sarah | C28: Châtillon | D28: 90 | E28: 2 | H28: F Top A | I28: 30 | J28: F Top A Surc | K28: 60
A29: 8 | B29: RAMADA Joana | C29: Ambérieu | D29: 39 | E29: 2 | N29: F Top B | O29: 15 | R29: 1/2 Top A | S29: 24
A30: 9 | B30: CLAUDET Romane | C30: Saint Genis | D30: 26 | E30: 2 | H30: P Top A | I30: 2 | J30: 3ème Top A | K30: 24
A31: 10 | B31: CLAUDET Clara | C31: Saint Genis | D31: 26 | E31: 2 | H31: P Top A | I31: 2 | J31: 3ème Top A | K31: 24
A32: 11 | B32: DEVILLARD Pauline | C32: Bourg Ceyzériat | D32: 24 | E32: 1 | F32: 1/2 Top A | G32: 24
A33: 12 | B33: ROUSSET Manon | C33: Oyonnax | D33: 22 | E33: 3 | F33: P Top A | G33: 2 | H33: 1/4 Top A | I33: 18 | J33: 4ème Top A | K33: 2
A34: 13 | B34: PIERRE Eva | C34: Belley | D34: 22 | E34: 2 | H34: P Top A | I34: 2 | N34: V Top B | O34: 20
A35: 14 | B35: DE AMEIDA Melina | C35: Montmerle | D35: 18 | E35: 4 | F35: P Top A | G35: 2 | H35: P Top A | I35: 2 | J35: 5ème Top A | K35: 2 | N35: 1/2 Top B | O35: 12
A36: 15 | B36: GIL Adèle | C36: Belley | D36: 14 | E36: 2 | N36: 1/2 Top B | O36: 12 | R36: P Top A | S36: 2
A37: 16 | B37: DI MARIO Maelle | C37: Montmerle | D37: 4 | E37: 2 | J37: 5ème Top A | K37: 2 | R37: P Top A | S37: 2
A38: 17 | B38: GALLARD Jennifer | C38: Oyonnax | D38: 3 | E38: 2 | J38: 4ème Top A | K38: 2 | N38: P Top B | O38: 1
A39: 18 | B39: BRUNE Gaëlle | C39: Oyonnax | D39: 2 | E39: 1 | F39: P Top A | G39: 2
A40: 19 | B40: PEY Jane | C40: Trévoux | D40: 2 | E40: 1 | H40: P Top A | I40: 2
A41: 20 | E41: 0
A42: 21 | E42: 0
A43: 22 | B43: HECKEL Julie | C43: Montmerle | D43: =G43+I43+K43+M43+O43+Q43+S43+U43+W43+Y43+AA43+AC43 -> 2 | E43: =COUNTA(G43,I43,K43,O43,S43,U43,W43,Y43) -> 1 | R43: P Top A | S43: 2
A45: BENJAMINES | F45: X | H45: X | J45: X | L45: X | N45: X | P45: X | R45: X | T45: X
A46: 1 | B46: CORDIER Louise | C46: Trévoux | D46: =G46+I46+K46+M46+O46+Q46+S46+U46+W46+Y46+AA46+AC46 -> 164 | E46: =COUNTA(G46,I46,K46,O46,S46,U46,W46,Y46) -> 4 | H46: V Top A | I46: 40 | J46: F Top A Surc | K46: 60 | N46: P Top A Surc | O46: 4 | R46: F Top A Surc | S46: 60
A47: 2 | B47: LEBEAULT Sasha | C47: Montmerle | D47: 160 | E47: 2 | J47: V Top A Surc | K47: 80 | N47: V Top A Surc | O47: 80
A48: 3 | B48: TATOT Tatiana | C48: Ambérieu | D48: 140 | E48: 4 | F48: F Top A | G48: 30 | H48: F Top A | I48: 30 | J48: V Top A | K48: 40 | N48: 1ère Top A | O48: 40
A49: 4 | B49: LEUK Julie | C49: Montmerle | D49: 134 | E49: 4 | F49: V Top A | G49: 40 | H49: 1/2 Top A | I49: 24 | J49: F Top A | K49: 30 | R49: V Top A | S49: 40
A50: 5 | B50: MARRON Gabrielle | C50: Saint Genis | D50: 112 | E50: 4 | F50: 1/2 Top A | G50: 24 | J50: V Top A | K50: 40 | N50: 3ème Top A | O50: 24 | R50: 1/2 Top A | S50: 24
A51: 6 | B51: VASTEL Marion | C51: Trévoux | D51: 72 | E51: 3 | H51: 1/4 Top A | I51: 18 | J51: 1/2 Top A | K51: 24 | R51: F Top A | S51: 30
A52: 7 | B52: TRAVET Romane | C52: Montmerle | D52: 50 | E52: 3 | F52: P Top A | G52: 2 | H52: 1/4 Top A | I52: 18 | J52: F Top A | K52: 30
A53: 8 | B53: NGUYEN Tiffany | C53: Trévoux | D53: 48 | E53: 2 | J53: 1/2 Top A | K53: 24 | R53: 1/2 Top A | S53: 24
A54: 9 | B54: BARLET Léa | C54: Belley | D54: 30 | E54: 1 | N54: 2ème Top A | O54: 30
A55: 10 | B55: BELLEC Ambre | C55: Belley | D55: 26 | E55: 2 | H55: 1/2 Top A | I55: 24 | N55: 4ème Top A | O55: 2
A56: 11 | B56: PLANTIER Elsa | C56: Beynost | D56: 26 | E56: 2 | F56: 1/2 Top A | G56: 24 | R56: P Top A | S56: 2
A57: 12 | B57: SLIMANI Daria | C57: Trévoux | D57: 24 | E57: 1 | J57: 1/2 Top A | K57: 24
A58: 13 | B58: BULAND Lise | C58: Trévoux | D58: 24 | E58: 1 | J58: 1/2 Top A | K58: 24
A59: 14 | B59: BERUTTO Léa | C59: Ambérieu | D59: 4 | E59: 2 | H59: P Top A | I59: 2 | R59: P Top A | S59: 2
A60: 15 | B60: BOUTE Maïwen | C60: Ambérieu | D60: 4 | E60: 2 | H60: P Top A | I60: 2 | R60: P Top A | S60: 2
A61: 16 | B61: BOURGARD Mathilde | C61: Gex | D61: 2 | E61: 1 | F61: P Top A | G61: 2
A62: 17 | B62: JOUAN Léa | C62: Gex | D62: 2 | E62: 1 | F62: P Top A | G62: 2
A63: 18 | B63: MAITRE Anaê | C63: Châtillon | D63: 2 | E63: 1 | J63: P Top A | K63: 2
A64: 19 | B64: CHERUBINI Tessa | C64: Châtillon | D64: 2 | E64: 1 | J64: P Top A | K64: 2
A65: 20 | B65: MORIN Gaiane | C65: Châtillon | D65: 2 | E65: 1 | J65: P Top A | K65: 2
A66: 21 | B66: MALLET Rosie | C66: Trévoux | D66: 2 | E66: 1 | J66: P Top A | K66: 2
A67: 22 | B67: BROCHARD Anissa | C67: Châtillon | D67: 2 | E67: 1 | J67: P Top A | K67: 2
A68: 23 | B68: PARUTA DELHAYE DE MAULDE Tiffanie | C68: Châtillon | D68: 2 | E68: 1 | J68: P Top A | K68: 2
D69: 0 | E69: 0
A71: POUSSINES | F71: X | H71: X | J71: X | L71: X | N71: X | P71: X | R71: X | T71: X
A72: 1 | B72: LEGOUGE Flora | C72: Trévoux | D72: =G72+I72+K72+M72+O72+Q72+S72+U72+W72+Y72+AA72+AC72 -> 40 | E72: =COUNTA(G72,I72,K72,O72,S72,U72,W72,Y72) -> 1 | J72: V Top A | K72: 40
A73: 2 | B73: MOLIMARD Clémence | C73: Trévoux | D73: 30 | E73: 1 | J73: F Top A | K73: 30
A74: 3 | B74: FERRY Violette | C74: Bourg Ceyzériat | D74: 24 | E74: 1 | J74: 1/2 Top A | K74: 24
A75: 4 | B75: RICHER Morgane | C75: Bourg Ceyzériat | D75: 24 | E75: 1 | J75: 1/2 Top A | K75: 24
A76: 5 | B76: ESTVES Maeva | C76: Trévoux | D76: 2 | E76: 1 | J76: P Top A | K76: 2
A77: 6 | B77: BRULAY Océane | C77: Châtillon | D77: 2 | E77: 1 | J77: P Top A | K77: 2
A78: 7 | B78: SLIMANI Mia | C78: Trévoux | D78: 2 | E78: =COUNTA(G78,I78,K78,O78,S78,U78,W78,Y78) -> 1 | J78: P Top A | K78: 2
A79: 8 | D79: 0
A80: 9 | D80: 0
A81: 10 | D81: 0
A83: CADETS | F83: X | H83: X | J83: X | L83: X | N83: X | P83: X | R83: X | T83: X
A84: 1 | B84: HECKENDORN Mathys | C84: Saint Genis | D84: =G84+I84+K84+M84+O84+Q84+S84+U84+W84+Y84+AA84+AC84 -> 146 | E84: =COUNTA(G84,I84,K84,O84,S84,U84,W84,Y84) -> 5 | F84: 1/4 Top A | G84: 18 | H84: 1/2 Top A | I84: 24 | J84: V Top A | K84: 40 | N84: 1/2 Top A | O84: 24 | R84: V Top A | S84: 40
A85: 2 | B85: MARRON Clément | C85: Saint Genis | D85: 106 | E85: 4 | F85: 1/4 Top A | G85: 18 | J85: V Top A | K85: 40 | N85: 1/2 Top A | O85: 24 | R85: 1/2 Top A | S85: 24
A86: 3 | B86: JULIEN Elie | C86: Châtillon | D86: 62 | E86: 3 | F86: 1/4 Top A | G86: 18 | J86: V Top B | K86: 20 | R86: 1/2 Top A | S86: 24
A87: 4 | B87: BESSET Florent | C87: Beynost | D87: 62 | E87: 4 | F87: F Top B | G87: 15 | H87: P Top A | I87: 2 | J87: F Top B | K87: 15 | R87: F Top A | S87: 30
A88: 5 | B88: FONTAINE Jonathan | C88: Châtillon | D88: 58 | E88: 5 | F88: 1/4 Top B | G88: 9 | H88: F Top B | I88: 15 | J88: V Top B | K88: 20 | N88: 1/2 Top B | O88: 12 | R88: P Top A | S88: 2
A89: 6 | B89: BOEHLER Julien | C89: Belley | D89: 54 | E89: 4 | F89: 1/2 Top B | G89: 12 | H89: V Top B | I89: 20 | J89: P Top A | K89: 2 | N89: V Top B | O89: 20
A90: 7 | B90: RUER Léo | C90: Ambérieu | D90: 50 | E90: 5 | F90: 1/2 Top B | G90: 12 | H90: 1/2 Top B | I90: 12 | J90: 1/2 Top B | K90: 12 | N90: 1/2 Top B | O90: 12 | R90: P Top A | S90: 2
A91: 8 | B91: PROST Justin | C91: Saint Genis | D91: 48 | E91: 2 | F91: 1/4 Top A | G91: 18 | H91: F Top A | I91: 30
A92: 9 | B92: GERBIER Loan | C92: Trévoux | D92: 40 | E92: 1 | F92: V Top A | G92: 40
A93: 10 | B93: PLANTIER Yann | C93: Beynost | D93: 37 | E93: 4 | F93: P Top A | G93: 2 | H93: P Top A | I93: 2 | J93: F Top B | K93: 15 | R93: 1/4 Top A | S93: 18
A94: 11 | B94: PARMENTIER Guillaume | C94: Bourg Ceyzériat | D94: 35 | E94: 4 | F94: 1/4 Top B | G94: 9 | J94: 1/4 Top B | K94: 9 | N94: F Top B | O94: 15 | R94: P Top A | S94: 2
A95: 12 | B95: CHARREYRON Bruno | C95: Trévoux | D95: 34 | E95: 4 | F95: P Top A | G95: 2 | H95: 1/2 Top B | I95: 12 | J95: P Top A | K95: 2 | R95: 1/4 Top A | S95: 18
A96: 13 | B96: LEGARDEUR Matteo | C96: Saint Genis | D96: 30 | E96: 1 | F96: F Top A | G96: 30
A97: 14 | B97: ACOSTA Cyril | C97: Ambérieu | D97: 30 | E97: 1 | J97: F Top A | K97: 30
A98: 15 | B98: WANTZ Leo | C98: Montmerle | D98: 30 | E98: 4 | F98: P Top A | G98: 2 | H98: P Top A | I98: 2 | J98: 1/2 Top A | K98: 24 | N98: P Top A | O98: 2
A99: 16 | B99: VINCENT Gaël | C99: Belley | D99: 30 | E99: 4 | F99: 1/4 Top B | G99: 9 | J99: P Top A | K99: 2 | N99: P Top B | O99: 1 | R99: 1/4 Top A | S99: 18
A100: 17 | B100: BURLEY Jeremy | C100: Ambérieu | D100: 29 | E100: 4 | H100: P Top B | I100: 1 | J100: 1/2 Top B | K100: 12 | N100: P Top B | O100: 1 | R100: F Top B | S100: 15
A101: 18 | B101: PASCAL Simon | C101: Ambérieu | D101: 26 | E101: 4 | F101: 1/8 Top B | G101: 7 | H101: 1/4 Top B | I101: 9 | J101: 1/4 Top B | K101: 9 | R101: P Top B | S101: 1
A102: 19 | B102: PERRIN Joris | C102: Bourg Ceyzériat | D102: 24 | E102: 1 | F102: 1/2 Top A | G102: 24
A103: 20 | B103: ORIAL Alexandre | C103: Saint Genis | D103: 24 | E103: 3 | F103: V Top B | G103: 20 | N103: P Top A | O103: 2 | R103: P Top A | S103: 2
A104: 21 | B104: SEMIZ Alexi | C104: Bourg Ceyzériat | D104: 22 | E104: 3 | F104: P Top B | G104: 1 | H104: 1/4 Top B | I104: 9 | R104: 1/2 Top B | S104: 12
A105: 22 | B105: BRONNEC Clément | C105: Beynost | D105: 21 | E105: 2 | J105: 1/2 Top B | K105: 12 | R105: 1/4 Top B | S105: 9
A106: 23 | B106: LOMBARD ROUSSET Matéo | C106: Beynost | D106: 21 | E106: 2 | J106: 1/2 Top B | K106: 12 | R106: 1/4 Top B | S106: 9
A107: 24 | B107: MARTINEZ Sébastien | C107: Ambérieu | D107: 21 | E107: 2 | N107: P Top B | O107: 1 | R107: V Top B | S107: 20
A108: 25 | B108: BACHAUD Léo | C108: Trévoux | D108: 19 | E108: 3 | F108: 1/4 Top B | G108: 9 | H108: 1/4 Top B | I108: 9 | R108: P Top B | S108: 1
A109: 26 | B109: PANEK Maxim | C109: Bourg Ceyzériat | D109: 19 | E109: 3 | H109: 1/4 Top B | I109: 9 | J109: 1/4 Top B | K109: 9 | N109: P Top B | O109: 1
A110: 27 | B110: ROUX Léopold | C110: Beynost | D110: 19 | E110: 2 | H110: 1/8 Top B | I110: 7 | R110: 1/2 Top B | S110: 12
A111: 28 | B111: MONNE Etienne | C111: Ambérieu | D111: 16 | E111: 2 | F111: 1/8 Top B | G111: 7 | J111: 1/4 Top B | K111: 9
A112: 29 | B112: LAMOURET Alexandre | C112: Oyonnax | D112: 11 | E112: 3 | F112: P Top B | G112: 1 | J112: P Top B | K112: 1 | R112: 1/4 Top B | S112: 9
A113: 30 | B113: BERTHET Nathan | C113: Bourg Ceyzériat | D113: 9 | E113: 1 | F113: 1/4 Top B | G113: 9
A114: 31 | B114: LAFAYE Dorian | C114: Beynost | D114: 9 | E114: 1 | R114: 1/4 Top B | S114: 9
A115: 32 | B115: BURLET Jérémy | C115: Ambérieu | D115: 7 | E115: 1 | F115: 1/8 Top B | G115: 7
A116: 33 | B116: PENNACINO Victor | C116: Prévessin | D116: 7 | E116: 1 | H116: 1/8 Top B | I116: 7
A117: 34 | B117: ROUGEMONT Elie | C117: Oyonnax | D117: 4 | E117: 2 | F117: P Top A | G117: 2 | H117: P Top A | I117: 2
A118: 35 | B118: GARRIDO Colas | C118: Oyonnax | D118: 3 | E118: 3 | F118: P Top B | G118: 1 | H118: P Top B | I118: 1 | J118: P Top B | K118: 1
A119: 36 | B119: POUGET Quentin | C119: Trévoux | D119: 2 | E119: 2 | J119: P Top B | K119: 1 | R119: P Top B | S119: 1
A120: 37 | B120: DURO Esteban | C120: Bourg Ceyzériat | D120: 1 | E120: 1 | F120: P Top B | G120: 1
A121: 38 | B121: VINIERE Quenntin | C121: Bourg ASPTT | D121: 1 | E121: 1 | F121: P Top B | G121: 1
A122: 39 | B122: LUZIEUX Jérémie | C122: Gex | D122: 1 | E122: 1 | F122: P Top B | G122: 1
A123: 40 | B123: PICCOLI Antoine | C123: Oyonnax | D123: 1 | E123: 1 | H123: P Top B | I123: 1
A124: 41 | B124: GUYOT Kévin | C124: Ambérieu | D124: 1 | E124: 1 | H124: P Top B | I124: 1
A125: 42 | B125: LENGAGNE Rémi | C125: Beynost | D125: 1 | E125: 1 | J125: P Top B | K125: 1
A126: 43 | B126: MONNOT Alexis | C126: Beynost | D126: 1 | E126: 1 | J126: P Top B | K126: 1
A127: 44 | B127: ARBONNIER Lionel | C127: Oyonnax | D127: 1 | E127: 1 | J127: P Top B | K127: 1
A128: 45 | B128: LATRASSE Florian | C128: Oyonnax | D128: 1 | E128: 1 | J128: P Top B | K128: 1
A129: 46 | B129: NGUYEN Tony | C129: Trévoux | D129: 1 | E129: 1 | J129: P Top B | K129: 1
A130: 47 | B130: POMPET Ianis | C130: Beynost | D130: 1 | E130: 1 | R130: P Top B | S130: 1
A132: MINIMES GARCONS | F132: X | H132: X | J132: X | L132: X | N132: X | O132: X | P132: X | T132: X
A133: 1 | B133: CHABANNE Léo | C133: Ambérieu | D133: =G133+I133+K133+M133+O133+Q133+S133+U133+W133+Y133+AA133+AC133 -> 200 | E133: =COUNTA(G133,I133,K133,O133,S133,U133,W133,Y133) -> 3 | H133: V Top A surc | I133: 80 | J133: F Top A Surc | K133: 60 | N133: F Top A Surc | O133: 60
A134: 2 | B134: GIORDANO Martin | C134: Bourg Ceyzériat | D134: 176 | E134: 3 | F134: 1/2 Top A Surcl | G134: 48 | J134: 1/2 Top A Surc | K134: 48 | N134: V Top A surc | O134: 80
A135: 3 | B135: BOULITEAU Matteo | C135: Montmerle | D135: 172 | E135: 5 | F135: 1/2 Top A | G135: 24 | H135: F Top A | I135: 30 | J135: 1/2 Top A Surc | K135: 48 | N135: F Top A | O135: 30 | R135: V Top A | S135: 40
A136: 4 | B136: GALIGNE Robin | C136: Trévoux | D136: 100 | E136: 3 | H136: 1/2 Top A surc | I136: 48 | J136: P Top A Surc | K136: 4 | R136: 1/2 Top A Surc | S136: 48
A137: 5 | B137: PAYAN Igor | C137: Châtillon | D137: 98 | E137: 5 | F137: P Top A | G137: 2 | H137: 1/2 Top A | I137: 24 | J137: 1/2 Top A | K137: 24 | N137: 1/2 Top A | O137: 24 | R137: 1/2 Top A | S137: 24
A138: 6 | B138: LAGER Ewen | C138: Bourg Ceyzériat | D138: 88 | E138: 2 | F138: V Top A | G138: 40 | J138: 1/2 Top A Surc | K138: 48
A139: 7 | B139: COTIER Vivien | C139: Saint Genis | D139: 86 | E139: 4 | F139: 1/2 Top A | G139: 24 | H139: 1/4 Top A | I139: 18 | N139: V Top B | O139: 20 | R139: 1/2 Top A | S139: 24
A140: 8 | B140: LOUIS GAVET Rémi | C140: Châtillon | D140: 70 | E140: 2 | J140: F Top A | K140: 30 | N140: V Top A | O140: 40
A141: 9 | B141: SARTHOIS Cyprien | C141: Beynost | D141: 70 | E141: 4 | F141: 1/2 Top B | G141: 12 | H141: V Top B | I141: 20 | J141: V Top B | K141: 20 | R141: 1/4 Top A | S141: 18
A142: 10 | B142: MONARD Mathis | C142: Châtillon | D142: 68 | E142: 4 | H142: P Top A | I142: 2 | J142: 1/2 Top A | K142: 24 | N142: 1/2 Top B | O142: 12 | R142: F Top A | S142: 30
A143: 11 | B143: LUCIEN Killian | C143: Châtillon | D143: 61 | E143: 5 | F143: P Top A | G143: 2 | H143: P Top A | I143: 2 | J143: 1/2 Top A | K143: 24 | N143: F Top B | O143: 15 | R143: 1/4 Top A | S143: 18
A144: 12 | B144: DUPUPET Adrien | C144: Châtillon | D144: 48 | E144: 2 | H144: 1/4 Top A | I144: 18 | J144: F Top A | K144: 30
A145: 13 | B145: FICAGNA Nathan | C145: Beynost | D145: 39 | E145: 3 | F145: 1/4 Top B | G145: 9 | J145: F Top B | K145: 15 | R145: F Top B | S145: 15
A146: 14 | B146: DUFOUR Lucien | C146: Beynost | D146: 35 | E146: 2 | F146: F Top B | G146: 15 | J146: V Top B | K146: 20
A147: 15 | B147: CASSAGNE Alexandre | C147: Trévoux | D147: 35 | E147: 4 | F147: 1/2 Top B | G147: 12 | H147: 1/4 Top B | I147: 9 | J147: 1/2 Top B | K147: 12 | R147: P Top A | S147: 2
A148: 16 | B148: DUBREUIL Robinson | C148: Bourg Ceyzériat | D148: 34 | E148: 3 | F148: V Top B | G148: 20 | H148: P Top A | I148: 2 | R148: 1/2 Top B | S148: 12
A149: 17 | B149: NOGUES Raphaël | C149: Saint Genis | D149: 32 | E149: 3 | F149: P Top A | G149: 2 | N149: 1/2 Top B | O149: 12 | R149: 1/4 Top A | S149: 18
A150: 18 | B150: CHAUNEY Axel | C150: Bourg Ceyzériat | D150: 31 | E150: 3 | F150: 1/8 Top B | G150: 7 | H150: 1/2 Top B | I150: 12 | J150: 1/2 Top B | K150: 12
A151: 19 | B151: ACOSTA Cyril | C151: Ambérieu | D151: 30 | E151: 1 | J151: F Top A | K151: 30
A152: 20 | B152: MEGARD Eliott | C152: Beynost | D152: 30 | E152: 2 | H152: F Top B | I152: 15 | J152: F Top B | K152: 15
A153: 21 | B153: CHANEL BURIGNAT Jordan | C153: Bourg Ceyzériat | D153: 29 | E153: 4 | F153: 1/8 Top B | G153: 7 | H153: P Top B | I153: 1 | J153: 1/2 Top B | K153: 12 | R153: 1/4 Top B | S153: 9
A154: 22 | B154: VINCENT Dorian | C154: Belley | D154: 22 | E154: 3 | F154: P Top B | G154: 1 | N154: 1/4 Top B | O154: 9 | R154: 1/2 Top B | S154: 12
A155: 23 | B155: CHAVANEL Dorian | C155: Ambérieu | D155: 21 | E155: 5 | F155: P Top B | G155: 1 | H155: 1/4 Top B | I155: 9 | J155: P Top B | K155: 1 | N155: 1/4 Top B | O155: 9 | R155: P Top B | S155: 1
A156: 24 | B156: BOUYSSOU Maxence | C156: Trévoux | D156: 20 | E156: 2 | H156: 1/4 Top A | I156: 18 | R156: P Top A | S156: 2
A157: 25 | B157: THIROUARD Thomas | C157: Ambérieu | D157: 20 | E157: 3 | H157: 1/4 Top B | I157: 9 | N157: 1/4 Top B | O157: 9 | R157: P Top A | S157: 2
A158: 26 | B158: BATAILLE Ulysse | C158: Trévoux | D158: 20 | E158: 1 | R158: V Top B | S158: 20
A159: 27 | B159: BALME Raphaël | C159: Ambérieu | D159: 19 | E159: 3 | J159: P Top B | K159: 1 | N159: 1/4 Top B | O159: 9 | R159: 1/4 Top B | S159: 9
A160: 28 | B160: BERTHILLIER Kostia | C160: Bourg Ceyzériat | D160: 13 | E160: 2 | F160: P Top B | G160: 1 | H160: 1/2 Top B | I160: 12
A161: 29 | B161: CHIROL Maxence | C161: Montmerle | D161: 13 | E161: 4 | F161: P Top A | G161: 2 | J161: P Top B | K161: 1 | N161: P Top B | O161: 1 | R161: 1/4 Top B | S161: 9
A162: 30 | B162: BOURCET Thomas | C162: Trévoux | D162: 12 | E162: 1 | J162: 1/2 Top B | K162: 12
A163: 31 | B163: BORDET Vivien | C163: Oyonnax | D163: 12 | E163: 3 | F163: P Top B | G163: 1 | H163: 1/4 Top B | I163: 9 | R163: P Top A | S163: 2
A164: 32 | B164: DEBARRE Hugo | C164: Beynost | D164: 10 | E164: 2 | H164: P Top B | I164: 1 | R164: 1/4 Top B | S164: 9
A165: 33 | B165: TOURAIS Vincent | C165: Bourg Ceyzériat | D165: 9 | E165: 1 | F165: 1/4 Top B | G165: 9
A166: 34 | B166: BOIZET Clément | C166: Bourg Ceyzériat | D166: 9 | E166: 1 | F166: 1/4 Top B | G166: 9
A167: 35 | B167: BESOMBES Maxence | C167: Gex | D167: 9 | E167: 1 | F167: 1/4 Top B | G167: 9
A168: 36 | B168: GUIGNABAUDET Eliot | C168: Ambérieu | D168: 3 | E168: 3 | H168: P Top B | I168: 1 | N168: P Top B | O168: 1 | R168: P Top B | S168: 1
A169: 37 | B169: PASCAL Baptiste | C169: Ambérieu | D169: 2 | E169: 2 | H169: P Top B | I169: 1 | R169: P Top B | S169: 1
A170: 38 | B170: MENTOR Mustafa | C170: Belley | D170: 2 | E170: 2 | N170: P Top B | O170: 1 | R170: P Top B | S170: 1
A171: 39 | B171: GUERIN Nathan | C171: Gex | D171: 1 | E171: 1 | F171: P Top B | G171: 1
A172: 40 | B172: MARTINEZ-LEON Francisco | C172: Saint Genis | D172: 1 | E172: 1 | H172: P Top B | I172: 1
A173: 41 | B173: BOYER Thibault | C173: Trévoux | D173: 1 | E173: 1 | J173: P Top B | K173: 1
A174: 42 | B174: DOMAIN Noa | C174: Belley | D174: 1 | E174: 1 | N174: P Top B | O174: 1
A175: 43 | B175: FOUNERY Mathéis | C175: Beynost | D175: 1 | E175: 1 | R175: P Top B | S175: 1
A176: 44 | B176: MASCUNAN Léo | C176: Beynost | D176: 1 | E176: 1 | R176: P Top B | S176: 1
A178: BENJAMINS | F178: X | H178: X | J178: X | L178: X | N178: X | P178: X | R178: X | T178: X
A179: 1 | B179: MOREY Nicolas | C179: Bourg Ceyzériat | D179: =G179+I179+K179+M179+O179+Q179+S179+U179+W179+Y179+AA179+AC179 -> 268 | E179: =COUNTA(G179,I179,K179,O179,S179,U179,W179,Y179) -> 4 | F179: F Top A Surc | G179: 60 | H179: V Top A Surc | I179: 80 | J179: V Top A Surc | K179: 80 | N179: 1/2 Top A Surc | O179: 48
A180: 2 | B180: NALET Martin | C180: Bourg Ceyzériat | D180: 172 | E180: 4 | F180: V Top A | G180: 40 | H180: 1/2 Top A Surc | I180: 48 | J180: V Top A Surc | K180: 80 | N180: P Top A Surc | O180: 4
A181: 3 | B181: LUCIEN Lucas | C181: Châtillon | D181: 154 | E181: 5 | F181: F Top A | G181: 30 | H181: 1/4 Top A Surc | I181: 36 | J181: 1/2 Top A Surc | K181: 48 | N181: P Top A Surc | O181: 4 | R181: 1/4 Top A Surc | S181: 36
A182: 4 | B182: SANLIARD Yoann | C182: Oyonnax | D182: 140 | E182: 4 | H182: F Top A | I182: 30 | J182: 1er Top A | K182: 40 | N182: V Top A | O182: 40 | R182: F Top A | S182: 30
A183: 5 | B183: ZARA-MARMETH Nathan | C183: Oyonnax | D183: 114 | E183: 5 | F183: 1/2 Top A | G183: 24 | H183: 1/2 Top A | I183: 24 | J183: 1er Top A | K183: 40 | N183: P Top A | O183: 2 | R183: 1/2 Top A | S183: 24
A184: 6 | B184: MARTINAND Cédric | C184: Châtillon | D184: 110 | E184: 3 | H184: V Top A | I184: 40 | N184: F Top A | O184: 30 | R184: V Top A | S184: 40
A185: 7 | B185: VIALLON Adrien | C185: Châtillon | D185: 80 | E185: 4 | F185: 1/2 Top A | G185: 24 | H185: 1/2 Top A | I185: 24 | J185: 2ème Top A | K185: 30 | R185: P Top A | S185: 2
A186: 8 | B186: TEMMERMAN Tom | C186: Châtillon | D186: 69 | E186: 4 | F186: 1/2 Top B | G186: 12 | J186: 2ème Top A | K186: 30 | N186: 1/2 Top B | O186: 12 | R186: F Top B | S186: 15
A187: 9 | B187: GENILLON Amir | C187: Bourg Ceyzériat | D187: 68 | E187: 5 | F187: F Top B | G187: 15 | H187: 1/2 Top B | I187: 12 | J187: 4ème Top A | K187: 2 | N187: F Top B | O187: 15 | R187: 1/2 Top A | S187: 24
A188: 10 | B188: HAYETTE Anseis | C188: Châtillon | D188: 60 | E188: 3 | H188: 1/2 Top B | I188: 12 | J188: 3ème Top A | K188: 24 | N188: 1/2 Top A | O188: 24
A189: 11 | B189: PRINCIC-GONZE Paco | C189: Belley | D189: 60 | E189: 3 | H189: V Top B | I189: 20 | N189: V Top B | O189: 20 | R189: V Top B | S189: 20
A190: 12 | B190: LECRIVAIN Raphaël | C190: Châtillon | D190: 52 | E190: 4 | F190: P Top B | G190: 1 | H190: F Top B | I190: 15 | J190: 3ème Top A | K190: 24 | R190: 1/2 Top B | S190: 12
A191: 13 | B191: MASSE Titouan | C191: Bourg Ceyzériat | D191: 30 | E191: 4 | H191: P Top A | I191: 2 | J191: 4ème Top A | K191: 2 | N191: 1/2 Top A | O191: 24 | R191: P Top A | S191: 2
A192: 14 | B192: CARPENTIER Erwan | C192: Oyonnax | D192: 18 | E192: 4 | F192: P Top A | G192: 2 | J192: 5ème Top A | K192: 2 | N192: P Top A | O192: 2 | R192: 1/2 Top B | S192: 12
A193: 15 | B193: GOULET Adrien | C193: Gex | D193: 12 | E193: 1 | F193: 1/2 Top B | G193: 12
A194: 16 | B194: SENELLART Octave | C194: Ambérieu | D194: 12 | E194: 1 | N194: 1/2 Top B | O194: 12
A195: 17 | B195: BOURGEAY-SEGUIN William | C195: Saint Genis | D195: 10 | E195: 2 | F195: P Top B | G195: 1 | H195: 1/4 Top B | I195: 9
A196: 18 | B196: PATRY-KRANENBERG Antoine | C196: Belley | D196: 10 | E196: 2 | H196: 1/4 Top B | I196: 9 | N196: P Top B | O196: 1
A197: 19 | B197: DURAND Léo | C197: Montmerle | D197: 7 | E197: 4 | F197: P Top A | G197: 2 | H197: P Top A | I197: 2 | J197: 5ème Top A | K197: 2 | R197: P Top B | S197: 1
A198: 20 | B198: CAMILLE Thomas | C198: Beynost | D198: 2 | E198: 2 | H198: P Top B | I198: 1 | R198: P Top B | S198: 1
A199: 21 | B199: PIERRE Enzo | C199: Bourg Ceyzériat | D199: 1 | E199: 1 | F199: P Top B | G199: 1
A200: 22 | B200: MARTINS DE AZEVEDO Evan | C200: Saint Genis | D200: 1 | E200: 1 | F200: P Top B | G200: 1
A201: 23 | B201: PERRET Arnaud | C201: Ambérieu | D201: 1 | E201: 1 | H201: P Top B | I201: 1
A202: 24 | B202: NOIZET Nathan | C202: Ambérieu | D202: 1 | E202: 1 | H202: P Top B | I202: 1
A203: 25 | B203: VIIDAL Mathieu | C203: Ambérieu | D203: 1 | E203: 1 | N203: P Top B | O203: 1
A204: 26 | B204: POTON Matthieu | C204: Belley | D204: 1 | E204: 1 | N204: P Top B | O204: 1
A205: 27 | B205: LAPOUGE Silas | C205: Beynost | D205: 1 | E205: 1 | R205: P Top B | S205: 1
A211: 28 | D211: =G211+I211+K211+M211+O211+Q211+S211+U211+W211+Y211+AA211+AC211 -> 0
A212: 29 | D212: 0
A214: POUSSINS | F214: X | H214: X | J214: X | L214: X | N214: X | P214: X | R214: X | T214: X
... 30 more rows

Sheet Feuil1
C1: V Top A Surc | D1: 80 | E1: V Top A Surc | F1: 80 | O1: F Top A Surc
A2: 1ère TopA | B2: 40 | C2: V Top A | D2: 40 | E2: 1/2 TopA Surc | F2: 24 | K2: V Top A | L2: 40
A3: 3ème TopA | B3: 24 | C3: 1/2 Top A | D3: 24 | E3: 1ere TopA | F3: 40 | K3: F Top A | L3: 30 | O3: 1/2 Top A Surc
A4: 2ème TopA | B4: 30 | C4: F Top A | D4: 30 | E4: 1ere TopA | F4: 40 | K4: 1/2 Top A | L4: 24 | M4: 1ère Top A | N4: 40 | O4: P Top A Surc
A5: 4ème TopA | B5: 2 | I5: V Top A | J5: 40 | K5: 1/2 Top A | L5: 24 | M5: 2ème Top A | N5: 30 | O5: 1ère Top A
E6: F Top A Surc | F6: 60
C7: 1/2 Top A | D7: 24 | E7: 2ème Top A | F7: 30
E8: 2ème Top A | F8: 30
C10: P Top A | D10: 2 | K10: P Top A | L10: 2 | O10: 3ème Top A
I11: F Top A | J11: 30
M12: 3ème Top A | N12: 24 | O12: 5ème Top A
I13: 1/2 Top A | J13: 24 | K13: P Top A | L13: 2
I14: 1/2 Top A | J14: 24
E15: 3ème Top A | F15: 24
E16: 3ème Top A | F16: 24
A17: 5ème TopA | B17: 2 | C17: P Top A | D17: 2
